bitfinex/quotes_BTCUSD_20251009
["timestamp","ask_amount","ask_price","bid_price","bid_amount"]
[1760024823166,0.4035362,120960.0,120950.0,0.1178]
[1760024823393,0.51454287,120960.0,120950.0,0.1178]
[1760024823609,0.7121958,120960.0,120950.0,0.1178]
[1760024823872,0.84875581,120960.0,120950.0,0.002]
[1760024824078,0.76885581,120960.0,120950.0,0.06848]
[1760024824284,0.81087189,120960.0,120950.0,0.06748]
[1760024824459,0.6322958,120960.0,120950.0,0.06748]
[1760024824688,1.3311758,120960.0,120950.0,0.06848]
[1760024824887,1.3792358,120960.0,120950.0,0.06748]
[1760024825291,1.3792358,120960.0,120950.0,0.001]
[1760024825489,1.4703758,120960.0,120950.0,0.001]
[1760024826133,1.3467558,120960.0,120950.0,0.06748]
[1760024826346,1.13335189,120960.0,120950.0,0.06748]
[1760024826568,1.2986958,120960.0,120950.0,0.06748]
[1760024826795,1.2986958,120960.0,120950.0,0.32445758]
[1760024826796,0.3669519,120960.0,120950.0,0.32445758]
[1760024827004,0.6894719,120960.0,120950.0,0.32345758]
[1760024827416,0.68186523,120960.0,120950.0,0.32345758]
[1760024827627,0.34920861,120960.0,120950.0,0.32345758]
[1760024828046,0.09516861,120960.0,120950.0,0.32445758]
[1760024828260,0.33176861,120960.0,120950.0,0.32445758]
[1760024828491,0.33176861,120960.0,120950.0,0.32345758]
[1760024828691,0.33172861,120960.0,120950.0,0.32345758]
[1760024828906,0.33172861,120960.0,120950.0,0.32445758]
[1760024829055,0.32411229,120960.0,120950.0,0.1601]
[1760024829261,0.32411229,120960.0,120950.0,0.32545758]
[1760024829733,0.00159229,120960.0,120950.0,0.32545758]
[1760024829884,0.32411229,120960.0,120950.0,0.32545758]
[1760024830082,0.32411229,120960.0,120950.0,0.32445758]
[1760024830291,0.3317035,120960.0,120950.0,0.32445758]
[1760024830507,0.34951361,120960.0,120950.0,0.32545758]
[1760024831043,0.11299361,120960.0,120950.0,0.32545758]
[1760024831280,0.34951361,120960.0,120950.0,0.40857964]
[1760024832038,0.3418824,120960.0,120950.0,0.40857964]
[1760024832246,0.0194024,120960.0,120950.0,0.40857964]
[1760024832442,0.00159229,120960.0,120950.0,0.40857964]
[1760024832658,0.23803229,120960.0,120950.0,0.40857964]
[1760024833294,0.25584525,120960.0,120950.0,0.40857964]
[1760024833499,0.23803229,120960.0,120950.0,0.40857964]
[1760024833937,0.10818727,120980.0,120970.0,0.16533024]
[1760024834141,0.34796563,120980.0,120970.0,0.35271024]
[1760024834426,0.02560563,120980.0,120970.0,0.18738]
[1760024834631,0.11156563,120980.0,120970.0,0.18738]
[1760024834840,0.34800563,120980.0,120970.0,0.18738]
[1760024835043,0.34800508,120980.0,120970.0,0.18838]
[1760024835250,0.34036524,120980.0,120970.0,0.18838]
[1760024835466,0.29910971,120980.0,120970.0,0.09584]
[1760024835667,0.04783313,120980.0,120970.0,0.18838]
[1760024835878,0.10392524,120980.0,120970.0,0.35371024]
[1760024836108,0.11156586,120980.0,120970.0,0.35371024]
[1760024836349,0.34044524,120980.0,120970.0,0.35371024]
[1760024836557,0.34044524,120980.0,120970.0,0.18838]
[1760024836970,0.34044524,120980.0,120970.0,0.35371024]
[1760024837376,0.10392524,120980.0,120970.0,0.35371024]
[1760024837596,0.34044524,120980.0,120970.0,0.35371024]
[1760024837802,0.01796524,120980.0,120970.0,0.4368323]
[1760024838229,0.00015234,120980.0,120970.0,0.4368323]
[1760024838371,0.07383234,120980.0,120970.0,0.4368323]
[1760024838585,0.01805527,120990.0,120980.0,0.16531658]
[1760024838787,0.20733785,120990.0,120980.0,0.45050864]
[1760024839028,0.19969527,120990.0,120980.0,0.45050864]
[1760024839370,0.0002,121000.0,120990.0,0.16530291]
[1760024839548,0.0002,121000.0,120990.0,0.40117497]
[1760024839549,0.09380005,121000.0,120990.0,0.40117497]
[1760024839715,0.27336005,121000.0,120990.0,0.23564402]
[1760024839920,0.27542883,121000.0,120990.0,0.23564402]
[1760024840127,0.60115506,121000.0,120990.0,0.06021]
[1760024840328,0.16530291,120990.0,120980.0,0.04932]
[1760024840529,1.02452651,121000.0,120990.0,0.06021]
[1760024840763,1.02452651,121000.0,120990.0,0.001]
[1760024840764,0.93286184,121000.0,120990.0,0.001]
[1760024840930,0.97384389,121000.0,120990.0,0.001]
[1760024841144,0.34,120990.0,120980.0,0.04932]
[1760024841341,0.55384291,120990.0,120980.0,0.05032]
[1760024841541,0.85609291,120990.0,120980.0,0.08752]
[1760024841745,0.50531658,120980.0,120970.0,0.03463]
[1760024841963,0.38854,120980.0,120970.0,0.03463]
[1760024842163,0.5766,120980.0,120970.0,0.18909]
[1760024842371,0.74191658,120980.0,120970.0,0.09749]
[1760024842568,0.74187658,120980.0,120970.0,0.09749]
[1760024842982,0.57656,120980.0,120970.0,0.09749]
[1760024843189,0.34,120980.0,120970.0,0.18909]
[1760024843407,0.57656,120980.0,120970.0,0.18909]
[1760024843684,0.34,120980.0,120970.0,0.18909]
[1760024843910,0.42596,120980.0,120970.0,0.18909]
[1760024844112,0.66248,120980.0,120970.0,0.18909]
[1760024844482,0.34,120980.0,120970.0,0.18909]
[1760024844691,0.42596,120980.0,120970.0,0.18909]
[1760024844889,0.66244,120980.0,120970.0,0.18909]
[1760024845133,0.66244,120980.0,120970.0,0.09749]
[1760024845768,0.66244,120980.0,120970.0,0.18909]
[1760024846578,0.89798658,120980.0,120970.0,0.09749]
[1760024847005,0.66244,120980.0,120970.0,0.09749]
[1760024847441,0.66244,120980.0,120970.0,0.18909]
[1760024847658,0.57648,120980.0,120970.0,0.18909]
[1760024847876,0.66244,120980.0,120970.0,0.09749]
[1760024848158,0.66244,120980.0,120970.0,0.18909]
[1760024848384,0.34004,120980.0,120970.0,0.18909]
[1760024848601,0.6624,120980.0,120970.0,0.18909]
[1760024849287,0.34004,120980.0,120970.0,0.18909]
[1760024849490,0.66236,120980.0,120970.0,0.18909]
[1760024850051,0.6624,120980.0,120970.0,0.18909]
[1760024850253,0.6624,120980.0,120970.0,0.35442024]
[1760024850901,0.34004,120980.0,120970.0,0.35442024]
[1760024851177,0.00107456,120980.0,120970.0,0.35442024]
[1760024851353,0.23747456,120980.0,120970.0,0.35442024]
[1760024852304,0.3402,121000.0,120980.0,0.16531407]
[1760024852513,0.3402,121000.0,120980.0,0.18997407]
[1760024852514,0.32236,120990.0,120980.0,0.18997407]
[1760024852737,0.3402,121000.0,120980.0,0.25283407]
[1760024852946,0.2368772,120990.0,120980.0,0.25283494]
[1760024853640,0.0005172,120990.0,120980.0,0.427557]
[1760024854117,0.2369172,120990.0,120980.0,0.427557]
[1760024854339,0.0005172,120990.0,120980.0,0.427557]
[1760024854550,0.2369172,120990.0,120980.0,0.427557]
[1760024854968,0.0005172,120990.0,120980.0,0.427557]
[1760024855191,0.0005172,120990.0,120980.0,0.34443658]
[1760024855430,0.2368772,120990.0,120980.0,0.34543658]
[1760024855630,0.2368772,120990.0,120980.0,0.34443658]
[1760024855844,0.0005172,120990.0,120980.0,0.34543658]
[1760024856062,0.2368372,120990.0,120980.0,0.34543658]
[1760024856487,0.2368372,120990.0,120980.0,0.34643658]
[1760024856946,0.0005172,120990.0,120980.0,0.18012]
[1760024857166,0.2368372,120990.0,120980.0,0.17912]
[1760024857377,0.2368372,120990.0,120980.0,0.08752]
[1760024857587,0.0005172,120990.0,120980.0,0.08852]
[1760024857795,0.2593472,120990.0,120980.0,0.08752]
[1760024858007,0.2369172,120990.0,120980.0,0.08752]
[1760024858220,0.2369172,120990.0,120980.0,0.17912]
[1760024858855,0.2368772,120990.0,120980.0,0.17912]
[1760024859074,0.0005572,120990.0,120980.0,0.17912]
[1760024859307,0.2368772,120990.0,120980.0,0.17912]
[1760024859536,0.0005572,120990.0,120980.0,0.17912]
[1760024859757,0.3228372,120990.0,120980.0,0.08752]
[1760024859969,0.28191011,120990.0,120980.0,0.08752]
[1760024860183,0.56656011,120990.0,120980.0,0.08752]
[1760024860394,0.16531658,120980.0,120970.0,0.03463]
[1760024860614,0.34,120980.0,120970.0,0.03463]
[1760024860850,0.47090999,120980.0,120970.0,0.09808]
[1760024861064,0.82070658,120980.0,120970.0,0.09808]
[1760024861279,0.92070657,120980.0,120970.0,0.03463]
[1760024861947,0.92070657,120980.0,120970.0,0.09808]
[1760024862155,0.68438657,120980.0,120970.0,0.09808]
[1760024862391,0.67639999,120980.0,120970.0,0.19603]
[1760024862607,0.57631495,120980.0,120970.0,0.19603]
[1760024863028,0.33991495,120980.0,120970.0,0.19603]
[1760024863255,0.57598335,120980.0,120970.0,0.19603]
[1760024863471,0.67598334,120980.0,120970.0,0.19603]
[1760024863681,0.33840835,120980.0,120970.0,0.19603]
[1760024863890,0.66076835,120980.0,120970.0,0.19603]
[1760024864096,0.66028235,120980.0,120970.0,0.19603]
[1760024864313,0.57428235,120980.0,120970.0,0.19603]
[1760024864522,0.65963485,120980.0,120970.0,0.19603]
[1760024864944,0.92458692,120980.0,120970.0,0.19603]
[1760024865157,0.75927034,120980.0,120970.0,0.19603]
[1760024865581,0.65927035,120980.0,120970.0,0.19603]
[1760024866033,0.23628,120980.0,120970.0,0.19603]
[1760024867547,0.23624,120980.0,120970.0,0.19603]
[1760024868428,0.69182151,120990.0,120970.0,0.19603]
[1760024868672,0.50533024,120970.0,120960.0,0.05070192]
[1760024868890,0.60533023,120970.0,120960.0,0.05085426]
[1760024869102,0.50533024,120970.0,120960.0,0.20961426]
[1760024869336,0.60533023,120970.0,120960.0,0.20961426]
[1760024869551,0.60533023,120970.0,120960.0,0.23013098]
[1760024869763,0.60533023,120970.0,120960.0,0.20961426]
[1760024870407,0.43999999,120970.0,120960.0,0.20961426]
[1760024870620,0.43999999,120970.0,120960.0,0.11609426]
[1760024870828,0.43999999,120970.0,120960.0,0.20961426]
[1760024871043,0.60533023,120970.0,120960.0,0.20961426]
[1760024871285,0.63733023,120970.0,120960.0,0.11609426]
[1760024871708,0.60533023,120970.0,120960.0,0.11609426]
[1760024871923,0.63784023,120970.0,120960.0,0.11609426]
[1760024872164,0.43999999,120970.0,120960.0,0.11609426]
[1760024872381,0.76215999,120970.0,120960.0,0.20961426]
[1760024872595,0.92749023,120970.0,120960.0,0.20961426]
[1760024872814,0.43999999,120970.0,120960.0,0.20961426]
[1760024873036,0.76219999,120970.0,120960.0,0.20961426]
[1760024874133,0.76223999,120970.0,120960.0,0.20961426]
[1760024874829,0.69133023,120970.0,120960.0,0.20961426]
[1760024875038,0.82753024,120970.0,120960.0,0.20961426]
[1760024875253,0.44003999,120970.0,120960.0,0.20961426]
[1760024875475,0.60537023,120970.0,120960.0,0.20961426]
[1760024875687,0.67627999,120970.0,120960.0,0.20961426]
[1760024876342,0.44003999,120970.0,120960.0,0.37495817]
[1760024876541,0.57628,120970.0,120960.0,0.37495817]
[1760024876747,0.44003999,120970.0,120960.0,0.37495817]
[1760024876962,0.23628,120970.0,120960.0,0.37495817]
[1760024878324,4e-05,120970.0,120960.0,0.37495817]
[1760024878738,0.23624,120970.0,120960.0,0.37495817]
[1760024879662,4e-05,120970.0,120960.0,0.20961426]
[1760024879887,0.40153024,120970.0,120960.0,0.20934275]
[1760024880544,0.16537024,120970.0,120960.0,0.20934275]
[1760024880755,0.46482024,120970.0,120960.0,0.11582275]
[1760024881935,0.40153024,120970.0,120960.0,0.11582275]
[1760024882189,4e-05,120970.0,120960.0,0.20934275]
[1760024882401,0.2362,120970.0,120960.0,0.20934275]
[1760024883076,0.40153024,120970.0,120960.0,0.20934275]
[1760024883297,0.40153024,120970.0,120960.0,0.11582275]
[1760024883298,0.48230024,120970.0,120960.0,0.11582275]
[1760024883527,0.82230024,120970.0,120960.0,0.05058275]
[1760024883740,0.92230023,120970.0,120960.0,0.05058275]
[1760024883950,0.92230023,120970.0,120960.0,0.11582275]
[1760024884832,0.57616,120970.0,120960.0,0.11582275]
[1760024885039,0.84149023,120970.0,120960.0,0.11582275]
[1760024885254,0.84149023,120970.0,120960.0,0.20934275]
[1760024885676,0.87484023,120970.0,120960.0,0.11582275]
[1760024885875,0.84149023,120970.0,120960.0,0.11582275]
[1760024886294,0.63872023,120970.0,120960.0,0.11582275]
[1760024886506,0.63872023,120970.0,120960.0,0.20934275]
[1760024886507,0.57616,120970.0,120960.0,0.20934275]
[1760024886718,0.67615999,120970.0,120960.0,0.20934275]
[1760024887376,0.84149023,120970.0,120960.0,0.20934275]
[1760024887590,0.92745023,120970.0,120960.0,0.20934275]
[1760024887992,0.96023023,120970.0,120960.0,0.11582275]
[1760024888418,0.60537023,120970.0,120960.0,0.11582275]
[1760024888623,0.44003999,120970.0,120960.0,0.20934275]
[1760024888834,0.76211999,120970.0,120960.0,0.20934275]
[1760024889056,0.34004,120970.0,120960.0,0.37468666]
[1760024889264,0.76211999,120970.0,120960.0,0.20934275]
[1760024889479,0.44003999,120970.0,120960.0,0.20934275]
[1760024889731,4e-05,120970.0,120960.0,0.37468666]
[1760024889920,4e-05,120970.0,120960.0,0.45780872]
[1760024890369,4e-05,120970.0,120960.0,0.51296061]
[1760024891214,4e-05,120970.0,120960.0,0.51396061]
[1760024891655,4e-05,120970.0,120960.0,0.51296061]
[1760024891824,4e-05,120970.0,120960.0,0.51396061]
[1760024892478,4e-05,120970.0,120960.0,0.51496061]
[1760024892700,4e-05,120970.0,120960.0,0.51396061]
[1760024892924,4e-05,120970.0,120960.0,0.51496061]
[1760024893124,4e-05,120970.0,120960.0,0.75004061]
[1760024893340,4e-05,120970.0,120960.0,0.74904061]
[1760024893566,4e-05,120970.0,120960.0,0.75004061]
[1760024893980,4e-05,120970.0,120960.0,0.75104061]
[1760024894606,4e-05,120970.0,120960.0,0.75004061]
[1760024895048,4e-05,120970.0,120960.0,0.75104061]
[1760024895880,4e-05,120970.0,120960.0,0.75004061]
[1760024896100,4e-05,120970.0,120960.0,0.75104061]
[1760024896304,4e-05,120970.0,120960.0,0.51496061]
[1760024896503,4e-05,120970.0,120960.0,0.75104061]
[1760024899227,4e-05,120970.0,120960.0,0.77585076]
[1760024899645,4e-05,120970.0,120960.0,0.53977076]
[1760024899849,4e-05,120970.0,120960.0,0.77585076]
[1760024901103,4e-05,120970.0,120960.0,0.53977076]
[1760024901304,4e-05,120970.0,120960.0,0.77585076]
[1760024902714,4e-05,120970.0,120960.0,0.53977076]
[1760024902973,4e-05,120970.0,120960.0,0.62569076]
[1760024903314,4e-05,120970.0,120960.0,0.85973076]
[1760024903871,4e-05,120970.0,120960.0,1.50373076]
[1760024904082,4e-05,120970.0,120960.0,1.50173076]
[1760024904299,4e-05,120970.0,120960.0,1.49973076]
[1760024904519,4e-05,120970.0,120960.0,1.17977076]
[1760024904712,4e-05,120970.0,120960.0,1.50173076]
[1760024905362,4e-05,120970.0,120960.0,1.50373076]
[1760024906471,4e-05,120980.0,120970.0,0.56048213]
[1760024906683,4e-05,120980.0,120970.0,0.77317419]
[1760024906915,0.0005572,120990.0,120980.0,0.53031657]
[1760024907074,0.0005572,120990.0,120980.0,0.96880863]
[1760024907303,0.0005572,120990.0,120980.0,0.82946053]
[1760024907528,0.0005572,120990.0,120980.0,1.06550053]
[1760024908077,1e-08,120990.0,120980.0,1.36550053]
[1760024908304,1e-08,120990.0,120980.0,1.42771799]
[1760024908743,0.0002,121000.0,120990.0,0.1903029]
[1760024908945,0.0002,121000.0,120990.0,0.47867496]
[1760024909091,0.0002,121000.0,120990.0,0.78125496]
[1760024909297,0.00071713,121000.0,120990.0,0.78125496]
[1760024909497,0.00071713,121000.0,120990.0,0.78456204]
[1760024909704,0.00071713,121000.0,120990.0,0.46260204]
[1760024909910,0.00071713,121000.0,120990.0,0.78652204]
[1760024910145,0.00071713,121000.0,120990.0,0.55152204]
[1760024910345,0.0002,121010.0,121000.0,0.56044114]
[1760024910544,0.0002,121020.0,121010.0,0.19027558]
[1760024910745,0.0002,121020.0,121010.0,1.04665764]
[1760024910972,0.0002,121020.0,121010.0,0.81065764]
[1760024911177,0.0002,121020.0,121010.0,1.04665764]
[1760024911588,0.44345511,121060.0,121050.0,0.16522098]
[1760024911759,0.10050722,121060.0,121050.0,0.37076098]
[1760024911968,0.00050723,121060.0,121050.0,0.37076098]
[1760024913006,0.10050722,121060.0,121050.0,0.20554]
[1760024913847,0.00050723,121060.0,121050.0,0.20554]
[1760024914045,0.10050722,121060.0,121050.0,0.20554]
[1760024914304,0.10050722,121060.0,121050.0,0.37076098]
[1760024914523,0.10050722,121060.0,121050.0,0.20554]
[1760024914744,0.00050723,121060.0,121050.0,0.37076098]
[1760024914954,0.10050722,121060.0,121050.0,0.37076098]
[1760024915208,0.00050723,121060.0,121050.0,0.37076098]
[1760024915870,0.00050723,121060.0,121050.0,0.26782059]
[1760024916084,0.10050722,121060.0,121050.0,0.26782059]
[1760024916295,0.10360834,121060.0,121050.0,0.26782059]
[1760024916509,0.00360835,121060.0,121050.0,0.43304157]
[1760024917371,0.00360835,121060.0,121050.0,0.26782059]
[1760024917603,0.10360834,121060.0,121050.0,0.43304157]
[1760024918034,0.10360834,121060.0,121050.0,0.26782059]
[1760024918252,0.10360834,121060.0,121050.0,0.43304157]
[1760024918488,0.00360835,121060.0,121050.0,0.43304157]
[1760024922593,0.00360835,121060.0,121050.0,0.51616363]
[1760024924112,0.00360835,121060.0,121050.0,0.35094265]
[1760024924284,0.00360835,121060.0,121050.0,0.66896157]
[1760024924481,0.00360835,121060.0,121050.0,0.43304157]
[1760024925302,0.00360835,121060.0,121050.0,0.66896157]
[1760024926963,0.00360835,121060.0,121050.0,0.75208363]
[1760024927618,0.00360835,121060.0,121050.0,0.51616363]
[1760024927824,0.00360835,121060.0,121050.0,0.26782059]
[1760024928032,0.10360834,121060.0,121050.0,0.50370059]
[1760024928240,0.26881567,121060.0,121050.0,0.26782059]
[1760024928453,0.26881567,121060.0,121040.0,0.04433]
[1760024928454,0.60522097,121050.0,121040.0,0.04433]
[1760024928672,0.63392097,121050.0,121040.0,0.10874]
[1760024928876,0.50522098,121050.0,121040.0,0.17049296]
[1760024929095,0.60522097,121050.0,121040.0,0.17049296]
[1760024929275,0.43999999,121050.0,121040.0,0.17049296]
[1760024929856,0.60522097,121050.0,121040.0,0.17049296]
[1760024930215,0.86980097,121050.0,121040.0,0.17049296]
[1760024930484,0.84110097,121050.0,121040.0,0.17049296]
[1760024930689,0.91914097,121050.0,121040.0,0.17049296]
[1760024930893,0.91914097,121050.0,121040.0,0.10874]
[1760024931309,0.68326097,121050.0,121040.0,0.10874]
[1760024931519,1.00502097,121050.0,121040.0,0.10874]
[1760024931990,0.60522097,121050.0,121040.0,0.10874]
[1760024932207,0.90611097,121050.0,121040.0,0.10874]
[1760024932435,1.00903097,121050.0,121040.0,0.04433]
[1760024932623,0.95948097,121050.0,121030.0,0.10608806]
[1760024932862,0.41788533,121040.0,121030.0,0.04433]
[1760024933032,0.45066463,121040.0,121030.0,0.04433]
[1760024933238,0.57997462,121040.0,121030.0,0.10874]
[1760024933447,0.09999999,121040.0,121030.0,0.10874]
[1760024933638,0.42175999,121040.0,121030.0,0.20375]
[1760024933976,0.58699462,121040.0,121030.0,0.20375]
[1760024934191,0.3441063,121040.0,121030.0,0.10874]
[1760024934409,0.5149763,121040.0,121030.0,0.10874]
[1760024934630,0.5149763,121040.0,121030.0,0.20375]
[1760024935264,0.5149763,121040.0,121030.0,0.10874]
[1760024935482,0.11386167,121040.0,121030.0,0.10874]
[1760024935695,0.34974167,121040.0,121030.0,0.20375]
[1760024935906,0.2790963,121040.0,121030.0,0.20375]
[1760024936117,0.34974167,121040.0,121030.0,0.20375]
[1760024937164,0.5149763,121040.0,121030.0,0.22426672]
[1760024937374,0.2790963,121040.0,121030.0,0.20375]
[1760024937588,0.5149763,121040.0,121030.0,0.20375]
[1760024937804,0.24974168,121040.0,121030.0,0.20375]
[1760024938012,0.34974167,121040.0,121030.0,0.20375]
[1760024938450,0.11386167,121040.0,121030.0,0.20375]
[1760024938672,0.34974167,121040.0,121030.0,0.20375]
[1760024939568,0.35180942,121040.0,121030.0,0.20375]
[1760024939761,0.11592942,121040.0,121030.0,0.20375]
[1760024940003,0.53381475,121040.0,121030.0,0.20375]
[1760024940222,0.53381475,121040.0,121030.0,0.10874]
[1760024940223,0.54574405,121040.0,121030.0,0.10874]
[1760024940440,0.11592942,121040.0,121030.0,0.10874]
[1760024940674,0.35180942,121040.0,121030.0,0.36899828]
[1760024941115,0.35180942,121040.0,121030.0,0.20375]
[1760024941339,0.35180942,121040.0,121030.0,0.36899828]
[1760024941558,0.11592942,121040.0,121030.0,0.36899828]
[1760024941771,0.35180942,121040.0,121030.0,0.20375]
[1760024942444,0.23794775,121040.0,121030.0,0.20375]
[1760024942667,0.23794775,121040.0,121030.0,0.10874]
[1760024942668,0.13076774,121040.0,121030.0,0.10874]
[1760024942905,0.59820307,121040.0,121030.0,0.10874]
[1760024943167,0.58204237,121040.0,121030.0,0.10874]
[1760024943393,0.16524828,121030.0,121020.0,0.04433]
[1760024943624,0.16526194,121020.0,121010.0,0.04433]
[1760024943838,0.16526194,121020.0,121010.0,0.10874]
[1760024943839,0.46615194,121020.0,121010.0,0.10874]
[1760024944057,0.23588,121020.0,121010.0,0.20375]
[1760024945388,0.48822033,121030.0,121010.0,0.20375]
[1760024945617,0.16526194,121020.0,121010.0,0.20375]
[1760024945880,0.22976194,121020.0,121010.0,0.10874]
[1760024946110,0.56564193,121020.0,121010.0,0.10874]
[1760024947107,0.40037999,121020.0,121010.0,0.10874]
[1760024947303,0.09999999,121020.0,121010.0,0.20375]
[1760024947522,0.2526507,121020.0,121010.0,0.20375]
[1760024947770,0.33587999,121020.0,121010.0,0.20375]
[1760024947994,0.09999999,121020.0,121010.0,0.20375]
[1760024948235,0.34837115,121030.0,121010.0,0.36902559]
[1760024948474,0.26526193,121020.0,121010.0,0.20375]
[1760024948938,0.09999999,121020.0,121010.0,0.20375]
[1760024949162,0.58837099,121030.0,121010.0,0.36902559]
[1760024949384,0.42312206,121030.0,121020.0,0.30460194]
[1760024949615,0.09999999,121040.0,121030.0,0.16524828]
[1760024949844,0.33587999,121040.0,121030.0,0.15695]
[1760024950101,0.18591999,121050.0,121040.0,0.16523463]
[1760024950354,0.42179999,121050.0,121040.0,0.15695]
[1760024950596,0.42179999,121050.0,121040.0,0.20128]
[1760024950807,0.43529885,121050.0,121040.0,0.20128]
[1760024951077,0.51459983,121050.0,121040.0,0.20128]
[1760024951757,0.51459983,121050.0,121040.0,0.10828]
[1760024951982,0.53624983,121050.0,121040.0,0.04433]
[1760024952218,0.53624983,121050.0,121030.0,0.093]
[1760024952219,0.1652391,121040.0,121030.0,0.04433]
[1760024952439,0.2139691,121040.0,121030.0,0.04433]
[1760024952655,0.2139691,121040.0,121030.0,0.10828]
[1760024952878,0.28765909,121040.0,121030.0,0.10828]
[1760024953082,0.26523909,121040.0,121030.0,0.10828]
[1760024953299,0.26523909,121040.0,121030.0,0.20128]
[1760024953520,0.28715909,121040.0,121030.0,0.10828]
[1760024953729,0.75588589,121040.0,121030.0,0.04433]
[1760024953945,0.26524827,121030.0,121020.0,0.04433]
[1760024954378,0.26524827,121030.0,121020.0,0.20128]
[1760024954798,0.26679921,121030.0,121020.0,0.20128]
[1760024955058,0.23743094,121030.0,121020.0,0.36654194]
[1760024955306,0.33743093,121030.0,121020.0,0.20128]
[1760024955990,0.26679921,121030.0,121020.0,0.20128]
[1760024956215,0.16679922,121030.0,121020.0,0.10828]
[1760024956453,0.56737921,121030.0,121020.0,0.10828]
[1760024957156,0.33149921,121030.0,121020.0,0.10828]
[1760024957402,0.50267921,121030.0,121020.0,0.10828]
[1760024957635,0.33141921,121030.0,121020.0,0.10828]
[1760024957866,0.88326807,121030.0,121020.0,0.04433]
[1760024958093,0.92580127,121030.0,121020.0,0.06395]
[1760024958313,0.44155093,121030.0,121020.0,0.15695]
[1760024958542,0.00155094,121030.0,121020.0,0.32221194]
[1760024958768,0.00155094,121030.0,121020.0,0.405334]
[1760024958987,0.00155094,121030.0,121020.0,0.641214]
[1760024959680,0.00155094,121030.0,121020.0,0.405334]
[1760024959907,0.00155094,121030.0,121020.0,0.641214]
[1760024960357,0.00255094,121030.0,121020.0,0.641214]
[1760024960785,0.00155094,121030.0,121020.0,0.405334]
[1760024961003,0.00155094,121030.0,121020.0,0.15795]
[1760024961251,0.00155094,121030.0,121020.0,0.55909194]
[1760024963229,0.00155094,121030.0,121020.0,0.32321194]
[1760024963663,0.00155094,121030.0,121020.0,0.55909194]
[1760024964512,0.00155094,121030.0,121020.0,0.55805194]
[1760024965351,0.00155094,121030.0,121020.0,0.32221194]
[1760024965559,0.00155094,121030.0,121020.0,0.55805194]
[1760024965984,0.00155094,121030.0,121020.0,0.32221194]
[1760024966197,0.00155094,121030.0,121020.0,0.55805194]
[1760024966410,0.00155094,121030.0,121020.0,0.55905194]
[1760024966859,0.00155094,121030.0,121020.0,0.15795]
[1760024967081,0.26679921,121030.0,121020.0,0.15795]
[1760024967298,0.10155093,121030.0,121020.0,0.15695]
[1760024967525,0.16679922,121030.0,121020.0,0.15795]
[1760024967740,0.10155093,121030.0,121020.0,0.15795]
[1760024967948,0.10155093,121030.0,121020.0,0.15695]
[1760024968158,0.26679921,121030.0,121020.0,0.15695]
[1760024968809,0.26679921,121030.0,121020.0,0.06395]
[1760024969016,0.28925921,121030.0,121020.0,0.06395]
[1760024969221,0.10155093,121030.0,121020.0,0.06395]
[1760024969403,0.26679921,121030.0,121020.0,0.15695]
[1760024969616,0.28925921,121030.0,121020.0,0.06395]
[1760024969833,0.10155093,121030.0,121020.0,0.06395]
[1760024970067,0.10155093,121030.0,121020.0,0.15695]
[1760024970842,0.00155094,121030.0,121020.0,0.32221194]
[1760024971052,0.10155093,121030.0,121020.0,0.32221194]
[1760024971340,0.00155094,121030.0,121020.0,0.32221194]
[1760024972858,0.00155094,121030.0,121020.0,0.55805194]
[1760024973067,0.00155094,121030.0,121020.0,0.32221194]
[1760024973277,0.00155094,121030.0,121020.0,0.55805194]
[1760024973489,0.26679921,121030.0,121020.0,0.15695]
[1760024973704,0.26679921,121030.0,121020.0,0.06395]
[1760024973839,0.28925921,121030.0,121020.0,0.06495]
[1760024974263,0.28925921,121030.0,121020.0,0.06395]
[1760024974861,0.28925921,121030.0,121010.0,0.13733]
[1760024974862,0.16526194,121020.0,121010.0,0.13733]
[1760024975066,0.18798194,121020.0,121010.0,0.10828]
[1760024975260,0.16526194,121020.0,121010.0,0.10828]
[1760024975463,0.16526194,121020.0,121010.0,0.20128]
[1760024975720,0.54955827,121030.0,121010.0,0.20128]
[1760024977245,0.50108827,121030.0,121020.0,0.093]
[1760024977464,0.26524827,121030.0,121020.0,0.15695]
[1760024977697,0.50108827,121030.0,121020.0,0.15695]
[1760024978084,0.09999999,121030.0,121020.0,0.15695]
[1760024978283,0.33583999,121030.0,121020.0,0.15695]
[1760024978793,0.09999999,121030.0,121020.0,0.15695]
[1760024979124,0.33583999,121030.0,121020.0,0.15695]
[1760024979496,0.33583999,121030.0,121020.0,0.1577763]
[1760024979721,0.09999999,121030.0,121020.0,0.32303824]
[1760024979893,0.59114551,121050.0,121030.0,0.16524828]
[1760024980112,0.23584,121040.0,121030.0,0.04433]
[1760024980315,0.77426756,121050.0,121040.0,0.10553]
[1760024980513,0.57010757,121050.0,121040.0,0.10553]
[1760024980853,0.67269204,121050.0,121040.0,0.20441]
[1760024980999,0.46539204,121050.0,121040.0,0.10553]
[1760024981203,0.67269204,121050.0,121040.0,0.10553]
[1760024981424,0.57269205,121050.0,121040.0,0.10553]
[1760024981636,0.67269204,121050.0,121040.0,0.10553]
[1760024981830,0.35093204,121050.0,121040.0,0.10553]
[1760024982031,0.61597204,121050.0,121040.0,0.10553]
[1760024982263,0.58677204,121050.0,121040.0,0.20441]
[1760024982489,0.58677204,121050.0,121040.0,0.10553]
[1760024982916,0.35093204,121050.0,121040.0,0.10553]
[1760024983112,0.61661204,121050.0,121040.0,0.10553]
[1760024983313,0.32154654,121050.0,121040.0,0.36964463]
[1760024983966,0.32154654,121050.0,121040.0,0.20441]
[1760024984388,0.32154654,121050.0,121040.0,0.36964463]
[1760024984594,0.32154654,121050.0,121040.0,0.20441]
[1760024984768,0.32154654,121050.0,121040.0,0.22492672]
[1760024984926,0.32154654,121050.0,121040.0,0.20441]
[1760024985327,0.42054653,121050.0,121040.0,0.20441]
[1760024985530,0.58576751,121050.0,121040.0,0.20441]
[1760024985863,0.32054654,121050.0,121040.0,0.20441]
[1760024986272,0.00258448,121050.0,121040.0,0.36964463]
[1760024986450,0.25519518,121050.0,121040.0,0.36964463]
[1760024986671,0.23842448,121050.0,121040.0,0.20441]
[1760024986861,0.23842448,121050.0,121040.0,0.10553]
[1760024987065,0.23842448,121050.0,121040.0,0.19715]
[1760024987629,0.23842448,121050.0,121040.0,0.36238463]
[1760024988501,0.00258448,121050.0,121040.0,0.36238463]
[1760024988874,0.00258448,121050.0,121040.0,0.84864116]
[1760024989077,0.00258448,121050.0,121040.0,0.93456116]
[1760024989387,0.0002,121070.0,121060.0,0.50520733]
[1760024989704,0.00070755,121070.0,121060.0,0.86849939]